fUSD/lending_fUSD_20260615
["ID","MTS","AMOUNT","RATE_DAILY","PERIOD"]
[425090964,1781481048000,-3046.08800076,0.00014584,2]
[425090965,1781481048000,-232.53023337,0.00016158,2]
[425090963,1781481048000,-2584.8220428,0.00014584,2]
[425090997,1781481049000,-1885.89374392,0.00022148,2]
[425091001,1781481049000,-269.49854041,0.00022148,2]
[425090998,1781481049000,-229.36885265,0.00022148,2]
[425091000,1781481049000,-420.0,0.00022148,2]
[425090995,1781481049000,-265.69864287,0.00022148,2]
[425090992,1781481049000,-244.65173129,0.0002211,2]
[425090999,1781481049000,-193.79278831,0.00022148,2]
[425090996,1781481049000,-615.09308484,0.00022148,2]
[425091002,1781481049000,-308.24,0.000222,2]
[425090994,1781481049000,-251.68619831,0.00022148,2]
[425091011,1781481049000,-1076.3,0.00022353,2]
[425091006,1781481049000,-154.62503566,0.00022221,2]
[425091008,1781481049000,-2586.85809042,0.00022221,2]
[425091004,1781481049000,-334.19562712,0.00022221,2]
[425091010,1781481049000,-1537.85,0.000223,14]
[425091005,1781481049000,-217.15233878,0.00022221,2]
[425091007,1781481049000,-151.0,0.00022221,2]
[425091013,1781481049000,-800.0,0.0002238,8]
[425091016,1781481049000,-323.27084576,0.00022407,2]
[425091020,1781481049000,-207.50897621,0.00022407,2]
[425091015,1781481049000,-345.56106947,0.0002238,8]
[425091014,1781481049000,-800.0,0.0002238,8]
[425091003,1781481049000,-469.83697307,0.00022221,2]
[425090993,1781481049000,-458.56889176,0.00022148,2]
[425090972,1781481049000,-151.0,0.00022,2]
[425090986,1781481049000,-155.028236,0.00022,2]
[425090968,1781481049000,-4744.93890304,0.00022,4]
[425090969,1781481049000,-300.0,0.00022,2]
[425090971,1781481049000,-450.0,0.00022,2]
[425091022,1781481049000,-207.50897618,0.00022407,2]
[425090970,1781481049000,-1404.837484,0.00022,2]
[425090973,1781481049000,-151.0,0.00022,2]
[425090974,1781481049000,-151.0,0.00022,2]
[425090976,1781481049000,-340.632916,0.00022,2]
[425090977,1781481049000,-340.632916,0.00022,2]
[425090978,1781481049000,-340.632916,0.00022,2]
[425090991,1781481049000,-960.992805,0.00022,2]
[425090975,1781481049000,-218.0,0.00022,2]
[425090981,1781481049000,-361.116364,0.00022,2]
[425090982,1781481049000,-361.116364,0.00022,2]
[425090980,1781481049000,-151.0,0.00022,2]
[425090984,1781481049000,-361.116364,0.00022,2]
[425090983,1781481049000,-361.116364,0.00022,2]
[425090990,1781481049000,-960.992805,0.00022,2]
[425090987,1781481049000,-1120.23,0.00022,2]
[425090989,1781481049000,-960.992805,0.00022,2]
[425090985,1781481049000,-151.0,0.00022,2]
[425090988,1781481049000,-960.992805,0.00022,2]
[425090979,1781481049000,-340.632916,0.00022,2]
[425091018,1781481049000,-323.27084575,0.00022407,2]
[425091009,1781481049000,-260.4103811,0.00022221,2]
[425091012,1781481049000,-800.0,0.0002238,8]
[425091048,1781481049000,-218.0,0.00023,2]
[425091058,1781481049000,-233.5188934,0.00023318,2]
[425091047,1781481049000,-1404.837484,0.00023,2]
[425091059,1781481049000,-154.62503581,0.00023318,2]
[425091053,1781481049000,-396.17,0.0002327,2]
[425091050,1781481049000,-264.63749367,0.00023217,2]
[425091052,1781481049000,-150.0,0.0002326,21]
[425091055,1781481049000,-174.52,0.00023288,2]
[425091051,1781481049000,-500.0,0.0002322,7]
[425091054,1781481049000,-1505.03,0.00023288,2]
[425091049,1781481049000,-388.70526276,0.000232,2]
[425091056,1781481049000,-150.0,0.00023288,2]
[425091060,1781481049000,-151.0,0.00023318,2]
[425091066,1781481049000,-482.3,0.00023376,2]
[425091063,1781481049000,-7222.44,0.0002332,7]
[425091067,1781481049000,-396.17,0.00023376,2]
[425091069,1781481049000,-644.14,0.00023376,2]
[425091064,1781481049000,-644.14,0.0002333,2]
[425091065,1781481049000,-396.17,0.0002333,2]
[425091068,1781481049000,-151.0,0.00023376,2]
[425091061,1781481049000,-2781.82699784,0.00023318,2]
[425091062,1781481049000,-280.03725111,0.00023318,2]
[425091019,1781481049000,-223.17786167,0.00022407,2]
[425091042,1781481049000,-151.0,0.00022769,2]
[425091044,1781481049000,-270.0455652,0.00022769,2]
[425091057,1781481049000,-469.83697307,0.00023318,2]
[425091036,1781481049000,-151.0,0.00022645,2]
[425091021,1781481049000,-207.50897618,0.00022407,2]
[425091040,1781481049000,-225.18697532,0.00022769,2]
[425091017,1781481049000,-323.27084575,0.00022407,2]
[425091024,1781481049000,-175.02,0.00022466,2]
[425091033,1781481049000,-3671.83664901,0.000226,2]
[425091026,1781481049000,-418.94,0.00022466,2]
[425091034,1781481049000,-168.44,0.00022603,2]
[425091023,1781481049000,-2000.0,0.00022455,7]
[425091025,1781481049000,-1679.05,0.00022466,2]
[425091031,1781481049000,-185.13,0.00022554,2]
[425091029,1781481049000,-644.12,0.00022508,2]
[425091032,1781481049000,-396.17,0.00022554,2]
[425091028,1781481049000,-36154.87520968,0.000225,2]
[425091030,1781481049000,-482.27,0.00022554,2]
[425091035,1781481049000,-151.0,0.0002261,2]
[425091038,1781481049000,-533.01022379,0.0002271,2]
[425091041,1781481049000,-154.62503566,0.00022769,2]
[425091043,1781481049000,-2682.57183977,0.00022769,2]
[425091045,1781481049000,-1594.67,0.000228,7]
[425091046,1781481049000,-1017.51131528,0.00023,2]
[425091027,1781481049000,-356.86,0.00022466,2]
[425091037,1781481049000,-1221.288605,0.00022679,7]
[425091039,1781481049000,-469.83697307,0.00022769,2]
[425091108,1781481050000,-1359.0,0.00023995,2]
[425091106,1781481050000,-1298.94668592,0.00023964,7]
[425091104,1781481050000,-1298.94668592,0.00023923,7]
[425091103,1781481050000,-377.41193036,0.00023901,7]
[425091099,1781481050000,-151.0,0.00023865,2]
[425091097,1781481050000,-469.83697307,0.00023865,2]
[425091100,1781481050000,-2884.75459676,0.00023865,2]
[425091102,1781481050000,-1298.94668592,0.00023883,7]
[425091101,1781481050000,-290.3986294,0.00023865,2]
[425091105,1781481050000,-141131.4103259,0.00023934,2]
[425091110,1781481050000,-383.0,0.00023995,2]
[425091107,1781481050000,-377.41193036,0.00023969,7]
[425091116,1781481050000,-3600.0,0.00024,2]
[425091113,1781481050000,-419.0,0.00023995,2]
[425091115,1781481050000,-1041.54460151,0.00024,2]
[425091114,1781481050000,-6077.0,0.00023995,2]
[425091112,1781481050000,-631.0,0.00023995,2]
[425091121,1781481050000,-500.0,0.00024,2]
[425091117,1781481050000,-1259.4026579,0.00024,2]
[425091120,1781481050000,-1404.837484,0.00024,2]
[425091119,1781481050000,-7985.16401836,0.00024,2]
[425091118,1781481050000,-3201.30353168,0.00024,2]
[425091123,1781481050000,-150.0,0.00024,2]
[425091122,1781481050000,-218.0,0.00024,2]
[425091109,1781481050000,-1275.0,0.00023995,2]
[425091111,1781481050000,-1228.0,0.00023995,2]
[425091098,1781481050000,-242.15909246,0.00023865,2]
[425091073,1781481050000,-151.0,0.00023442,2]
[425091094,1781481050000,-274.77868199,0.00023842,7]
[425091125,1781481050000,-377.41193036,0.00024037,7]
[425091070,1781481050000,-200.0,0.00023376,5]
[425091071,1781481050000,-396.18,0.00023377,2]
[425091083,1781481050000,-1298.94668592,0.00023599,2]
[425091074,1781481050000,-3901.10731104,0.000235,30]
[425091072,1781481050000,-396.14090389,0.00023386,2]
[425091075,1781481050000,-151.0,0.000235,2]
[425091078,1781481050000,-151.0,0.000235,2]
[425091081,1781481050000,-377.41193036,0.00023559,2]
[425091082,1781481050000,-162.36833574,0.00023559,2]
[425091079,1781481050000,-1298.94668592,0.00023559,2]
[425091077,1781481050000,-152.706512,0.000235,2]
[425091080,1781481050000,-274.77868199,0.00023559,2]
[425091076,1781481050000,-151.0,0.000235,2]
[425091085,1781481050000,-1298.94668592,0.0002364,2]
[425091084,1781481050000,-377.41193036,0.00023627,2]
[425091089,1781481050000,-178.642021,0.00023747,7]
[425091090,1781481050000,-1298.94668592,0.00023761,2]
[425091087,1781481050000,-377.41193036,0.00023695,2]
[425091092,1781481050000,-1298.94668592,0.00023802,2]
[425091091,1781481050000,-377.41193036,0.00023764,7]
[425091096,1781481050000,-162.36833574,0.00023842,7]
[425091086,1781481050000,-1298.94668592,0.0002368,2]
[425091093,1781481050000,-377.41193036,0.00023832,7]
[425091095,1781481050000,-1298.94668592,0.00023842,7]
[425091088,1781481050000,-1298.94668592,0.00023721,2]
[425091131,1781481050000,-274.77868199,0.00024125,7]
[425091176,1781481050000,-500.0,0.00024566,2]
[425091129,1781481050000,-366.58,0.0002411,2]
[425091159,1781481050000,-377.41193036,0.0002438,14]
[425091157,1781481050000,-1298.94668592,0.00024328,14]
[425091158,1781481050000,-1298.94668592,0.00024368,14]
[425091160,1781481050000,-274.77868199,0.00024409,14]
[425091164,1781481050000,-151.0,0.00024412,2]
[425091163,1781481050000,-621.78829552,0.00024412,2]
[425091161,1781481050000,-1298.94668592,0.00024409,14]
[425091166,1781481050000,-469.83697307,0.00024413,2]
[425091167,1781481050000,-251.11897888,0.00024413,2]
[425091172,1781481050000,-1298.94668592,0.00024449,14]
[425091169,1781481050000,-2991.49051684,0.00024413,2]
[425091170,1781481050000,-301.14337869,0.00024413,2]
[425091171,1781481050000,-377.41193036,0.00024448,14]
[425091173,1781481050000,-1298.94668592,0.0002449,14]
[425091168,1781481050000,-151.0,0.00024413,2]
[425091165,1781481050000,-775.4783256,0.00024412,2]
[425091124,1781481050000,-1298.94668592,0.00024004,7]
[425091174,1781481050000,-377.41193036,0.00024516,14]
[425091177,1781481050000,-151.25769388,0.00024566,2]
[425091178,1781481050000,-1298.94668592,0.00024571,14]
[425091183,1781481050000,-150.0,0.00024645,2]
[425091182,1781481050000,-150.0,0.00024645,2]
[425091179,1781481050000,-377.41193036,0.00024585,30]
[425091180,1781481050000,-1298.94668592,0.00024611,14]
[425091181,1781481050000,-151.0,0.00024642,7]
[425091162,1781481050000,-162.36833574,0.00024409,14]
[425091155,1781481050000,-377.41193036,0.00024311,14]
[425091175,1781481050000,-1298.94668592,0.0002453,14]
[425091154,1781481050000,-200.0,0.00024311,5]
[425091156,1781481050000,-1076.3,0.00024324,2]
[425091126,1781481050000,-1298.94668592,0.00024044,7]
[425091130,1781481050000,-312.25,0.0002411,2]
[425091128,1781481050000,-377.41193036,0.00024106,7]
[425091127,1781481050000,-1298.94668592,0.00024085,7]
[425091133,1781481050000,-162.36833574,0.00024125,7]
[425091132,1781481050000,-1298.94668592,0.00024125,7]
[425091140,1781481050000,-644.12,0.00024198,2]
[425091138,1781481050000,-377.41193036,0.00024174,14]
[425091137,1781481050000,-1298.94668592,0.00024166,7]
[425091141,1781481050000,-482.28,0.00024198,2]
[425091136,1781481050000,-573.4,0.00024152,2]
[425091135,1781481050000,-576.03,0.00024152,2]
[425091134,1781481050000,-482.21,0.00024152,2]
[425091139,1781481050000,-644.09,0.00024198,2]
[425091149,1781481050000,-151.0,0.00024263,2]
[425091150,1781481050000,-644.14,0.00024264,2]
[425091151,1781481050000,-1298.94668592,0.00024287,7]
[425091142,1781481050000,-396.17,0.00024199,2]
[425091145,1781481050000,-377.41193036,0.00024243,14]
[425091147,1781481050000,-151.0,0.00024262,2]
[425091148,1781481050000,-151.0,0.00024262,2]
[425091143,1781481050000,-1298.94668592,0.00024206,7]
[425091146,1781481050000,-1298.94668592,0.00024247,7]
[425091153,1781481050000,-1594.67,0.000243,7]
[425091152,1781481050000,-10818.58543635,0.0002429,7]
[425091144,1781481050000,-3769.04668067,0.0002421,2]
[425091207,1781481051000,-500.0,0.00024658,2]
[425091212,1781481051000,-500.0,0.00024658,2]
[425091209,1781481051000,-500.0,0.00024658,2]
[425091213,1781481051000,-500.0,0.00024658,2]
[425091210,1781481051000,-500.0,0.00024658,2]
[425091202,1781481051000,-500.0,0.00024658,2]
[425091206,1781481051000,-500.0,0.00024658,2]
[425091211,1781481051000,-500.0,0.00024658,2]
[425091221,1781481051000,-377.41193036,0.00024722,30]
[425091224,1781481051000,-800.0,0.00024788,9]
[425091223,1781481051000,-1298.94668592,0.00024773,14]
[425091219,1781481051000,-162.36833574,0.00024692,14]
[425091217,1781481051000,-274.77868199,0.00024692,30]
[425091216,1781481051000,-571.75,0.00024658,2]
[425091215,1781481051000,-642.79381982,0.00024658,2]
[425091208,1781481051000,-500.0,0.00024658,2]
[425091214,1781481051000,-500.0,0.00024658,2]
[425091205,1781481051000,-500.0,0.00024658,2]
[425091200,1781481051000,-500.0,0.00024658,2]
[425091201,1781481051000,-500.0,0.00024658,2]
[425091218,1781481051000,-1298.94668592,0.00024692,14]
[425091187,1781481051000,-1000.0,0.00024658,2]
[425091184,1781481051000,-1298.94668592,0.00024652,14]
[425091185,1781481051000,-377.41193036,0.00024653,30]
[425091186,1781481051000,-167.78319083,0.00024658,2]
[425091189,1781481051000,-361.073308,0.00024658,2]
[425091193,1781481051000,-236.866385,0.00024658,2]
[425091199,1781481051000,-500.0,0.00024658,2]
[425091190,1781481051000,-361.073308,0.00024658,2]
[425091191,1781481051000,-361.073308,0.00024658,2]
[425091188,1781481051000,-1168.99,0.00024658,2]
[425091194,1781481051000,-236.866385,0.00024658,2]
[425091198,1781481051000,-500.0,0.00024658,2]
[425091192,1781481051000,-361.073308,0.00024658,2]
[425091197,1781481051000,-150.0,0.00024658,2]
[425091195,1781481051000,-236.866385,0.00024658,2]
[425091196,1781481051000,-236.866385,0.00024658,2]
[425091204,1781481051000,-500.0,0.00024658,2]
[425091222,1781481051000,-1298.94668592,0.00024733,14]
[425091203,1781481051000,-500.0,0.00024658,2]
[425091227,1781481051000,-800.0,0.00024788,9]
[425091245,1781481051000,-482.27,0.00024974,2]
[425091244,1781481051000,-260.4103811,0.00024961,2]
[425091247,1781481051000,-482.28,0.00024974,2]
[425091250,1781481051000,-185.1,0.00024974,2]
[425091255,1781481051000,-162.36833574,0.00024976,30]
[425091252,1781481051000,-644.14,0.00024974,2]
[425091251,1781481051000,-185.12,0.00024974,2]
[425091246,1781481051000,-644.05,0.00024974,2]
[425091258,1781481051000,-151.0,0.00024997,7]
[425091256,1781481051000,-7222.44,0.00024981,7]
[425091253,1781481051000,-274.77868199,0.00024976,60]
[425091249,1781481051000,-482.28,0.00024974,2]
[425091257,1781481051000,-377.41193036,0.00024995,60]
[425091260,1781481051000,-73582.1897035,0.00025,2]
[425091261,1781481051000,-7253.7723471,0.00025,2]
[425091262,1781481051000,-81959.75109026,0.00025,7]
[425091259,1781481051000,-151.0,0.00024997,7]
[425091248,1781481051000,-396.17,0.00024974,2]
[425091254,1781481051000,-1298.94668592,0.00024976,30]
[425091240,1781481051000,-377.41193036,0.00024927,30]
[425091243,1781481051000,-469.83697307,0.00024961,2]
[425091225,1781481051000,-800.0,0.00024788,9]
[425091230,1781481051000,-800.0,0.00024788,9]
[425091228,1781481051000,-800.0,0.00024788,9]
[425091232,1781481051000,-377.41193036,0.0002479,30]
[425091231,1781481051000,-851.01342149,0.00024788,9]
[425091234,1781481051000,-1298.94668592,0.00024814,30]
[425091229,1781481051000,-800.0,0.00024788,9]
[425091226,1781481051000,-800.0,0.00024788,9]
[425091220,1781481051000,-1120.23,0.0002471,7]
[425091233,1781481051000,-162.36833573,0.00024799,60]
[425091237,1781481051000,-1298.94668592,0.00024895,30]
[425091235,1781481051000,-1298.94668592,0.00024854,30]
[425091238,1781481051000,-1109.0,0.000249,9]
[425091236,1781481051000,-377.41193036,0.00024858,30]
[425091239,1781481051000,-264.63749367,0.000249,2]
[425091241,1781481051000,-1298.94668592,0.00024935,30]
[425091263,1781481051000,-500.0,0.00018934,5]
[425091242,1781481051000,-2000.0,0.00024961,7]
[425091268,1781481053000,-7818.05240557,0.00025,7]
[425091266,1781481053000,-431.0,0.00021918,7]
[425091267,1781481053000,-6510.10047205,0.00025,7]
[425091264,1781481053000,-631.6,0.00025,7]
[425091265,1781481053000,-1389.4386276,0.00025,7]
[425091269,1781481066000,253.79,0.00028805,120]
[425091271,1781481174000,-500.0,9.096e-05,2]
[425091283,1781481228000,-500.0,9.096e-05,2]
[425091284,1781481282000,-219.3674356,9.096e-05,2]
[425091288,1781481335000,-1475.65157898,8e-05,2]
[425091289,1781481337000,172.0,0.00030136,120]
[425091290,1781481389000,-591.69981483,9.095e-05,2]
[425091291,1781481442000,-500.0,9.094e-05,2]
[425091300,1781481496000,-1472.23,9.04e-05,2]
[425091301,1781481514000,-7552.99183928,9.04e-05,2]
[425091302,1781481532000,-7552.99183928,9.04e-05,2]
[425091303,1781481552000,-183.19602683,9.039e-05,2]
[425091314,1781481627000,200.75089702,0.00021999,120]
[425091321,1781481706000,-318.54488865,8.239e-05,2]
[425091322,1781481760000,-150.0,8.382e-05,2]
[425091323,1781481813000,-500.0,8.382e-05,2]
[425091324,1781481833000,-401.45284147,8.382e-05,2]
[425091325,1781481882000,-160.0,8.387e-05,2]
[425091326,1781481936000,-500.0,8.392e-05,2]
[425091327,1781481959000,-233.0607219,8.403e-05,2]
[425091328,1781482013000,-250.0,8.424e-05,2]
[425091333,1781482066000,-103.56647034,8.61e-05,2]
[425091332,1781482066000,-500.0,8.61e-05,2]
[425091331,1781482066000,-150.0,8.528e-05,2]
[425091330,1781482066000,-171.68377219,8.444e-05,2]
[425091335,1781482120000,-396.43352966,8.61e-05,2]
[425091336,1781482150000,-179.6634,8.609e-05,2]
[425091354,1781482232000,-500.0,8.609e-05,2]
[425091356,1781482232000,-500.0,8.609e-05,2]
[425091344,1781482232000,-345.58054262,8.609e-05,2]
[425091346,1781482232000,-500.0,8.609e-05,2]
[425091348,1781482232000,-500.0,8.609e-05,2]
[425091347,1781482232000,-500.0,8.609e-05,2]
[425091349,1781482232000,-500.0,8.609e-05,2]
[425091343,1781482232000,-500.0,8.609e-05,2]
[425091350,1781482232000,-500.0,8.609e-05,2]
[425091351,1781482232000,-500.0,8.609e-05,2]
[425091352,1781482232000,-500.0,8.609e-05,2]
[425091355,1781482232000,-500.0,8.609e-05,2]
[425091345,1781482232000,-500.0,8.609e-05,2]
[425091353,1781482232000,-500.0,8.609e-05,2]
[425091394,1781482233000,-150.0,8.698e-05,2]
[425091392,1781482233000,-250.0,8.611e-05,2]
[425091395,1781482233000,-150.0,8.784e-05,2]
[425091390,1781482233000,-500.0,8.609e-05,2]
[425091391,1781482233000,-219.36743558,8.609e-05,2]
[425091418,1781482233000,-700.5,0.00010521,2]
[425091398,1781482233000,-160.0,9.06e-05,2]
[425091389,1781482233000,-500.0,8.609e-05,2]
[425091397,1781482233000,-117.10444331,9.04e-05,2]
[425091399,1781482233000,-164.78,9.107e-05,2]
[425091393,1781482233000,-160.0,8.618e-05,2]
[425091401,1781482233000,-250.0,9.289e-05,2]
[425091407,1781482233000,-11384.56345434,9.501e-05,2]
[425091402,1781482233000,-1396.20013977,9.47e-05,2]
[425091408,1781482233000,-2000.0,9.501e-05,2]
[425091400,1781482233000,-500.0,9.232e-05,2]
[425091403,1781482233000,-500.0,9.47e-05,2]
[425091396,1781482233000,-274.0,8.87e-05,2]
[425091404,1781482233000,-250.0,9.471e-05,2]
[425091406,1781482233000,-273.96764187,9.5e-05,2]
[425091405,1781482233000,-1000.0,9.499e-05,2]
[425091410,1781482233000,-14499.91863729,9.501e-05,2]
[425091411,1781482233000,-12240.57183526,9.501e-05,2]
[425091414,1781482233000,-1956.67559862,0.0001,2]
[425091420,1781482233000,-2841.06839906,0.00010897,2]
[425091409,1781482233000,-5676.02198027,9.501e-05,2]
[425091381,1781482233000,-500.0,8.609e-05,2]
[425091383,1781482233000,-500.0,8.609e-05,2]
[425091379,1781482233000,-500.0,8.609e-05,2]
[425091360,1781482233000,-500.0,8.609e-05,2]
[425091358,1781482233000,-500.0,8.609e-05,2]
[425091357,1781482233000,-500.0,8.609e-05,2]
[425091361,1781482233000,-500.0,8.609e-05,2]
[425091359,1781482233000,-500.0,8.609e-05,2]
[425091363,1781482233000,-500.0,8.609e-05,2]
[425091369,1781482233000,-437.01666793,8.609e-05,2]
[425091371,1781482233000,-500.0,8.609e-05,2]
[425091370,1781482233000,-500.0,8.609e-05,2]
[425091373,1781482233000,-500.0,8.609e-05,2]
[425091362,1781482233000,-500.0,8.609e-05,2]
[425091372,1781482233000,-500.0,8.609e-05,2]
[425091364,1781482233000,-500.0,8.609e-05,2]
[425091366,1781482233000,-500.0,8.609e-05,2]
[425091367,1781482233000,-500.0,8.609e-05,2]
[425091365,1781482233000,-500.0,8.609e-05,2]
[425091368,1781482233000,-500.0,8.609e-05,2]
[425091374,1781482233000,-500.0,8.609e-05,2]
[425091376,1781482233000,-500.0,8.609e-05,2]
[425091375,1781482233000,-500.0,8.609e-05,2]
[425091384,1781482233000,-500.0,8.609e-05,2]
[425091385,1781482233000,-243.70166679,8.609e-05,2]
[425091387,1781482233000,-500.0,8.609e-05,2]
[425091386,1781482233000,-500.0,8.609e-05,2]
[425091378,1781482233000,-500.0,8.609e-05,2]
[425091382,1781482233000,-500.0,8.609e-05,2]
[425091415,1781482233000,-2771.09654236,0.0001,2]
[425091388,1781482233000,-500.0,8.609e-05,2]
[425091412,1781482233000,-205.0,9.8e-05,2]
[425091446,1781482233000,-299.99,0.00012893,2]
[425091447,1781482233000,-9999.99,0.00012893,2]
[425091450,1781482233000,-1265.82877241,0.00013,2]
[425091451,1781482233000,-15810.37303564,0.00013,5]
[425091452,1781482233000,-2232.36998049,0.00013,2]
[425091453,1781482233000,-700.5,0.00013152,2]
[425091454,1781482233000,-2000.0,0.00013196,2]
[425091456,1781482233000,-150.0,0.00013488,2]
[425091455,1781482233000,-500.0,0.00013196,2]
[425091461,1781482233000,-164.78,0.0001366,2]
[425091458,1781482233000,-150.0,0.00013488,2]
[425091465,1781482233000,-500.0,0.00013698,2]
[425091467,1781482233000,-500.0,0.00013698,2]
[425091457,1781482233000,-150.0,0.00013488,2]
[425091460,1781482233000,-1000.0,0.000135,2]
[425091466,1781482233000,-500.0,0.00013698,2]
[425091464,1781482233000,-500.0,0.00013698,2]
[425091459,1781482233000,-150.0,0.00013488,2]
[425091463,1781482233000,-500.0,0.00013698,2]
[425091462,1781482233000,-500.0,0.00013698,2]
[425091468,1781482233000,-500.0,0.00013698,2]
[425091471,1781482233000,-200.0,0.00013699,2]
[425091470,1781482233000,-2500.0,0.00013699,2]
[425091472,1781482233000,-500.0,0.00013699,2]
[425091413,1781482233000,-219.36743558,9.8e-05,2]
[425091449,1781482233000,-3998.4076,0.000129,2]
[425091448,1781482233000,-150.99,0.00012893,2]
[425091469,1781482233000,-711.4,0.00013698,2]
[425091438,1781482233000,-192.28,0.00011491,2]
[425091416,1781482233000,-4420.78866663,0.0001,2]
[425091419,1781482233000,-9464.92160094,0.00010897,2]
[425091417,1781482233000,-41966.13673894,0.000103,2]
[425091421,1781482233000,-187.1,0.00010897,2]
[425091428,1781482233000,-620.05,0.00011128,2]
[425091430,1781482233000,-1852.42,0.00011225,2]
[425091423,1781482233000,-7377.01597991,0.00010909,2]
[425091424,1781482233000,-166.66,0.00010959,2]
[425091422,1781482233000,-187.1,0.00010897,2]
[425091425,1781482233000,-357.37,0.0001108,2]
[425091426,1781482233000,-1423.44,0.0001108,2]
[425091427,1781482233000,-1492.32666634,0.00011113,2]
[425091429,1781482233000,-166.66,0.0001114,2]
[425091431,1781482233000,-532.85,0.00011226,2]
[425091432,1781482233000,-356.92,0.00011287,2]
[425091442,1781482233000,-166.66,0.00011864,2]
[425091437,1781482233000,-1875.01,0.0001146,2]
[425091443,1781482233000,-174.21,0.00012329,2]
[425091439,1781482233000,-166.66,0.00011502,2]
[425091434,1781482233000,-166.66,0.00011321,2]
[425091445,1781482233000,-167.59332163,0.00012575,2]
[425091440,1781482233000,-166.66,0.00011683,2]
[425091444,1781482233000,-620.05,0.00012519,2]
[425091435,1781482233000,-250.0,0.00011375,2]
[425091436,1781482233000,-200.0,0.00011405,2]
[425091433,1781482233000,-4576.71,0.00011287,2]
[425091441,1781482233000,-700.5,0.00011836,2]
[425091483,1781482234000,-2500.0,0.000143,2]
[425091485,1781482234000,-1555.5,0.00014338,2]
[425091482,1781482234000,-8222.94001959,0.00014299,2]
[425091481,1781482234000,-477.68248327,0.0001421,7]
[425091479,1781482234000,-202.105689,0.00014,2]
[425091489,1781482234000,-604.72,0.00014399,2]
[425091475,1781482234000,-1500.0,0.0001379,2]
[425091476,1781482234000,-620.05,0.0001391,2]
[425091474,1781482234000,-517.14900349,0.00013699,2]
[425091473,1781482234000,-500.0,0.00013699,2]
[425091478,1781482234000,-250.0,0.00014,2]
[425091480,1781482234000,-500.0,0.00014167,2]
[425091477,1781482234000,-1500.0,0.00014,2]
[425091484,1781482234000,-5067.81903924,0.00014311,2]
[425091488,1781482234000,-5067.8190392,0.00014376,2]
[425091499,1781482234000,-5941.17315993,0.000144,2]
[425091497,1781482234000,-760.3859301,0.000144,2]
[425091498,1781482234000,-8475.41891671,0.000144,2]
[425091486,1781482234000,-8222.94001952,0.00014366,2]
[425091491,1781482234000,-500.0,0.00014399,2]
[425091494,1781482234000,-54271.23437175,0.000144,2]
[425091492,1781482234000,-500.0,0.00014399,2]
[425091495,1781482234000,-1254.41808677,0.000144,2]
[425091493,1781482234000,-500.0,0.00014399,2]
[425091490,1781482234000,-500.0,0.00014399,2]
[425091487,1781482234000,-500.0,0.00014376,2]
[425091496,1781482234000,-3401.40444538,0.000144,2]
[425091583,1781482238000,-5067.8190392,0.00014638,2]
[425091565,1781482238000,-170.63172329,0.00014496,2]
[425091586,1781482238000,-500.0,0.00014663,2]
[425091585,1781482238000,-604.72,0.00014663,2]
[425091592,1781482238000,-391.826836,0.000147,2]
[425091588,1781482238000,-357.967493,0.00014699,2]
[425091596,1781482238000,-5067.8190392,0.00014769,2]
[425091591,1781482238000,-368.775285,0.000147,2]
[425091590,1781482238000,-989.3794,0.000147,2]
[425091566,1781482238000,-8222.94001952,0.00014499,2]
[425091587,1781482238000,-216.06106235,0.00014694,2]
[425091570,1781482238000,-500.0,0.00014509,2]
[425091579,1781482238000,-151.0,0.0001463,2]
[425091581,1781482238000,-8222.94001952,0.00014633,2]